fUST/lending_fUST_20251010
["ID","MTS","AMOUNT","RATE_DAILY","PERIOD"]
[390597730,1760099448890,-616.5,0.00016712,2]
[390597731,1760099448902,-762.72,0.00016712,2]
[390597732,1760099448912,-636.81915855,0.00016712,2]
[390597733,1760099448922,-500.0,0.00016712,2]
[390597734,1760099448931,-543.2,0.00016712,2]
[390597735,1760099448942,-500.0,0.00016712,2]
[390597736,1760099448953,-2405.04,0.00016712,2]
[390597737,1760099448963,-500.0,0.00016712,2]
[390597738,1760099448972,-372.60440747,0.00016712,2]
[390597739,1760099448981,-500.0,0.00016712,2]
[390597740,1760099448994,-3371.16,0.00016712,2]
[390597741,1760099449003,-500.0,0.00016712,2]
[390597742,1760099449012,-500.0,0.00016712,2]
[390597743,1760099449022,-500.0,0.00016712,2]
[390597744,1760099449031,-500.0,0.00016712,2]
[390597745,1760099449040,-500.0,0.00016712,2]
[390597746,1760099449049,-553.62897114,0.00016712,2]
[390597747,1760099449058,-1656.93,0.00016712,2]
[390597748,1760099449067,-2754.36,0.00016712,2]
[390597749,1760099449076,-500.0,0.00016712,2]
[390597750,1760099449086,-1563.85,0.00016712,2]
[390597751,1760099449095,-784.65,0.00016712,2]
[390597752,1760099449104,-618.89,0.00016712,2]
[390597753,1760099449113,-507.64,0.00016712,2]
[390597754,1760099449122,-500.0,0.00016712,2]
[390597755,1760099449131,-500.0,0.00016712,2]
[390597756,1760099449140,-500.0,0.00016712,2]
[390597757,1760099449149,-507.56,0.00016712,2]
[390597758,1760099449157,-1298.65,0.00016712,2]
[390597759,1760099449167,-500.0,0.00016712,2]
[390597760,1760099449176,-591.47,0.00016712,2]
[390597761,1760099449185,-500.0,0.00016712,2]
[390597762,1760099449194,-500.0,0.00016712,2]
[390597763,1760099449204,-431.4,0.00016712,2]
[390597764,1760099449213,-500.0,0.00016712,2]
[390597765,1760099449222,-500.0,0.00016712,2]
[390597766,1760099449231,-619.33,0.00016712,2]
[390597767,1760099449240,-500.0,0.00016712,2]
[390597768,1760099449248,-500.0,0.00016712,2]
[390597769,1760099449257,-683.55,0.00016712,2]
[390597770,1760099449267,-717.81,0.00016712,2]
[390597771,1760099449279,-500.0,0.00016712,2]
[390597772,1760099449288,-500.0,0.00016712,2]
[390597773,1760099449297,-702.21,0.00016712,2]
[390597774,1760099449306,-500.0,0.00016712,2]
[390597775,1760099449317,-500.0,0.00016712,2]
[390597776,1760099449326,-500.0,0.00016712,2]
[390597777,1760099449336,-2242.71,0.00016712,2]
[390597778,1760099449345,-696.19,0.00016712,2]
[390597779,1760099449355,-500.0,0.00016712,2]
[390597780,1760099449364,-500.0,0.00016712,2]
[390597781,1760099449373,-1375.86,0.00016712,2]
[390597782,1760099449383,-571.43,0.00016712,2]
[390597783,1760099449392,-500.0,0.00016712,2]
[390597784,1760099449401,-1599.94,0.00016712,2]
[390597785,1760099449411,-500.0,0.00016712,2]
[390597786,1760099449420,-500.0,0.00016712,2]
[390597787,1760099449429,-500.0,0.00016712,2]
[390597788,1760099449438,-500.0,0.00016712,2]
[390597789,1760099449447,-500.0,0.00016712,2]
[390597790,1760099449456,-500.0,0.00016712,2]
[390597791,1760099449466,-500.0,0.00016712,2]
[390597792,1760099449475,-500.0,0.00016712,2]
[390597793,1760099449484,-1157.53,0.00016712,2]
[390597794,1760099449493,-500.0,0.00016712,2]
[390597795,1760099449502,-1386.69,0.00016712,2]
[390597796,1760099449511,-524.25,0.00016712,2]
[390597797,1760099449520,-500.0,0.00016712,2]
[390597798,1760099449529,-500.0,0.00016712,2]
[390597799,1760099449538,-480.88566584,0.00016712,2]
[390597800,1760099449548,-203.41,0.00016712,2]
[390597801,1760099449557,-1387.36,0.00016712,2]
[390597802,1760099449566,-500.0,0.00016712,2]
[390597803,1760099449575,-1986.55,0.00016712,2]
[390597804,1760099449584,-500.0,0.00016712,2]
[390597805,1760099449593,-500.0,0.00016712,2]
[390597806,1760099449603,-5035.73,0.00016712,2]
[390597807,1760099449612,-536.22,0.00016712,2]
[390597808,1760099449621,-383.30888638,0.00016712,2]
[390597809,1760099449630,-1609.48,0.00016765,2]
[390597810,1760099449640,-300.0,0.00016766,2]
[390597811,1760099449651,-300.0,0.00016766,2]
[390597812,1760099449662,-300.0,0.00016766,2]
[390597813,1760099449671,-300.0,0.00016766,2]
[390597814,1760099449681,-300.0,0.00016766,2]
[390597815,1760099449691,-300.0,0.00016766,2]
[390597816,1760099449700,-300.0,0.00016766,2]
[390597817,1760099449710,-300.0,0.00016766,2]
[390597818,1760099449719,-300.0,0.00016766,2]
[390597819,1760099449728,-300.0,0.00016766,2]
[390597820,1760099449737,-300.0,0.00016766,2]
[390597821,1760099449747,-300.0,0.00016766,2]
[390597822,1760099449756,-300.0,0.00016766,2]
[390597823,1760099449766,-300.0,0.00016766,2]
[390597824,1760099449776,-300.0,0.00016766,2]
[390597825,1760099449785,-600.0,0.00016766,2]
[390597826,1760099449794,-1041.66666667,0.00016889,2]
[390597827,1760099449804,-160.0,0.00016889,2]
[390597828,1760099449814,-160.0,0.00016889,2]
[390597829,1760099449823,-298.03512572,0.00016889,2]
[390597830,1760099449832,-234.32063665,0.00016889,2]
[390597831,1760099449841,-204.28177558,0.000169,2]
[390597832,1760099449851,-1609.48,0.00016985,2]
[390597833,1760099449860,-1609.48,0.00016985,2]
[390597834,1760099449870,-1609.48,0.00016985,2]
[390597835,1760099449879,-1609.48,0.00016985,2]
[390597836,1760099449888,-1609.48,0.00016985,2]
[390597837,1760099449900,-1609.48,0.00016985,2]
[390597838,1760099449911,-1609.48,0.00016985,2]
[390597839,1760099449923,-1609.71,0.00016985,2]
[390597840,1760099449932,-151.0,0.00016985,2]
[390597841,1760099449941,-151.0,0.00016985,2]
[390597842,1760099449951,-151.0,0.00016985,2]
[390597843,1760099449960,-151.0,0.00016985,2]
[390597844,1760099449969,-151.0,0.00016985,2]
[390597845,1760099449978,-151.0,0.00016985,2]
[390597846,1760099449988,-547.39,0.00016986,2]
[390597847,1760099449997,-500.0,0.00016986,2]
[390597848,1760099450006,-500.0,0.00016986,2]
[390597849,1760099450015,-504.6195507,0.00016986,2]
[390597850,1760099450184,-402.2,0.00016986,2]
[390597851,1760099450195,-500.0,0.00016986,2]
[390597852,1760099450204,-611.37,0.00016986,2]
[390597853,1760099450214,-448.63,0.00016986,2]
[390597854,1760099450224,-500.0,0.00016986,2]
[390597855,1760099450233,-334.20908735,0.00016986,2]
[390597861,1760099623132,3042.83165427,0.00029531,120]
[390597870,1760099707668,800.0,0.0002876,120]
[390597873,1760099732898,800.0,0.0002876,120]
[390597875,1760099739511,800.0,0.0002876,120]
[390597878,1760099744555,185.997239,0.00015561,2]
[390597910,1760100023161,426.032604,0.00015438,2]
[390597911,1760100058020,10000.0,0.0002876,120]
[390597912,1760100066683,3295.12494237,0.00015571,2]
[390597913,1760100440854,1303.311092,0.00013699,2]
[390597914,1760100451575,310.385,0.00028767,120]
[390597922,1760100590555,666.66666667,0.00023395,30]
[390597923,1760100591381,666.66666667,0.00023395,30]
[390597962,1760100632160,-156.0,0.00015863,3]
[390597963,1760100632169,-272.04457321,0.00015863,2]
[390597964,1760100632178,-300.0,0.00016436,2]
[390597965,1760100632188,-500.0,0.00016437,2]
[390597966,1760100632197,-216.97040254,0.00016437,2]
[390597967,1760100632208,-154.57292549,0.00016437,2]
[390597968,1760100632219,-500.0,0.00016437,2]
[390597969,1760100632228,-500.0,0.00016437,2]
[390597970,1760100632237,-92.94724778,0.00016437,2]
[390597971,1760100632269,-341.30325134,0.00016437,2]
[390597972,1760100632278,-322.0925646,0.00016437,2]
[390598154,1760100637851,-58.07993014,0.00016437,2]
[390598155,1760100637860,-162.13236323,0.00016437,2]
[390598156,1760100637870,-533.71,0.00016438,2]
[390598157,1760100637880,-502.08894967,0.00016438,2]
[390598158,1760100637889,-500.0,0.00016438,2]
[390598159,1760100637898,-500.0,0.00016438,2]
[390598160,1760100637908,-866.12,0.00016438,2]
[390598161,1760100637918,-500.0,0.00016438,2]
[390598162,1760100637927,-500.0,0.00016438,2]
[390598163,1760100637936,-218.75400835,0.00016438,2]
[390598164,1760100637945,-500.0,0.00016438,2]
[390598165,1760100637954,-500.0,0.00016438,2]
[390598166,1760100637963,-365.46772809,0.00016438,2]
[390598167,1760100637973,-761.63,0.00016438,2]
[390598168,1760100637983,-440.28487698,0.00016438,2]
[390598169,1760100637992,-500.0,0.00016438,2]
[390598170,1760100638001,-500.0,0.00016438,2]
[390598171,1760100638010,-500.0,0.00016438,2]
[390598172,1760100638019,-461.63971521,0.00016438,2]
[390598173,1760100638028,-500.0,0.00016438,2]
[390598174,1760100638037,-1374.74,0.00016438,2]
[390598175,1760100638047,-500.0,0.00016438,2]
[390598176,1760100638056,-631.69,0.00016438,2]
[390598177,1760100638065,-219.36677268,0.00016438,2]
[390598178,1760100638075,-500.0,0.00016438,2]
[390598179,1760100638084,-500.0,0.00016438,2]
[390598180,1760100638094,-468.76,0.00016438,2]
[390598181,1760100638102,-500.0,0.00016438,2]
[390598182,1760100638112,-150.2,0.00016438,2]
[390598183,1760100638121,-500.0,0.00016438,2]
[390598184,1760100638130,-500.0,0.00016438,2]
[390598185,1760100638139,-691.07,0.00016438,2]
[390598186,1760100638148,-500.0,0.00016438,2]
[390598187,1760100638158,-199.38,0.00016438,2]
[390598188,1760100638167,-500.0,0.00016438,2]
[390598189,1760100638177,-568.67,0.00016438,2]
[390598190,1760100638187,-500.0,0.00016438,2]
[390598191,1760100638196,-500.0,0.00016438,2]
[390598192,1760100638207,-500.0,0.00016438,2]
[390598193,1760100638217,-500.0,0.00016438,2]
[390598194,1760100638227,-1135.66,0.00016438,2]
[390598195,1760100638236,-500.0,0.00016438,2]
[390598196,1760100638246,-500.0,0.00016438,2]
[390598197,1760100638257,-199.55682446,0.00016438,2]
[390598198,1760100638268,-802.08,0.00016438,2]
[390598199,1760100638278,-1224.57,0.00016438,2]
[390598200,1760100638288,-513.30909316,0.00016438,2]
[390598201,1760100638297,-500.0,0.00016438,2]
[390598202,1760100638307,-359.82968162,0.00016438,2]
[390598203,1760100638317,-500.0,0.00016438,2]
[390598204,1760100638327,-500.0,0.00016438,2]
[390598205,1760100638337,-500.0,0.00016438,2]
[390598206,1760100638347,-500.0,0.00016438,2]
[390598207,1760100638357,-500.0,0.00016438,2]
[390598208,1760100638368,-151.0,0.00016438,2]
[390598209,1760100638377,-152.25446761,0.00016438,2]
[390598210,1760100638387,-151.0,0.00016438,2]
[390598211,1760100638397,-151.0,0.00016438,2]
[390598212,1760100638406,-151.0,0.00016438,2]
[390598213,1760100638416,-500.0,0.00016438,2]
[390598215,1760100638425,-151.0,0.00016438,2]
[390598216,1760100638434,-156.7887732,0.00016438,2]
[390598218,1760100638443,-151.0,0.00016438,2]
[390598219,1760100638454,-151.0,0.00016438,2]
[390598220,1760100638464,-152.12694981,0.00016438,2]
[390598221,1760100638475,-151.73338094,0.00016438,2]
[390598222,1760100638485,-500.0,0.00016438,2]
[390598223,1760100638495,-500.0,0.00016438,2]
[390598224,1760100638505,-500.0,0.00016438,2]
[390598225,1760100638514,-500.0,0.00016438,2]
[390598226,1760100638524,-569.60990512,0.00016438,2]
[390598227,1760100638534,-390.71,0.00016438,2]
[390598228,1760100638544,-594.34,0.00016438,2]
[390598229,1760100638553,-925.79,0.00016438,2]
[390598230,1760100638563,-354.98323806,0.00016438,2]
[390598231,1760100638572,-500.0,0.00016438,2]
[390598232,1760100638581,-500.0,0.00016438,2]
[390598233,1760100638591,-500.0,0.00016438,2]
[390598234,1760100638600,-500.0,0.00016438,2]
[390598235,1760100638610,-500.0,0.00016438,2]
[390598236,1760100638619,-500.0,0.00016438,2]
[390598237,1760100638629,-500.0,0.00016438,2]
[390598238,1760100638638,-4912.41,0.00016438,2]
[390598239,1760100638647,-151.0,0.00016438,2]
[390598240,1760100638656,-261.13241851,0.00016438,2]
[390598241,1760100638665,-154.52963647,0.00016438,2]
[390598242,1760100638676,-500.0,0.00016438,2]
[390598243,1760100638686,-500.0,0.00016438,2]
[390598244,1760100638699,-500.0,0.00016438,2]
[390598245,1760100638708,-500.0,0.00016438,2]
[390598246,1760100638717,-500.0,0.00016438,2]
[390598247,1760100638727,-500.0,0.00016438,2]
[390598248,1760100638737,-500.0,0.00016438,2]
[390598249,1760100638748,-500.0,0.00016438,2]
[390598250,1760100638757,-500.0,0.00016438,2]
[390598251,1760100638767,-502.26101463,0.00016438,2]
[390598252,1760100638780,-500.0,0.00016438,2]
[390598253,1760100638790,-302.88,0.00016438,2]
[390598254,1760100638799,-500.0,0.00016438,2]
[390598255,1760100638809,-500.0,0.00016438,2]
[390598256,1760100638818,-500.0,0.00016438,2]
[390598257,1760100638827,-500.0,0.00016438,2]
[390598258,1760100638837,-500.0,0.00016438,2]
[390598259,1760100638847,-644.11,0.00016438,2]
[390598260,1760100638856,-500.0,0.00016438,2]
[390598261,1760100638865,-500.0,0.00016438,2]
[390598262,1760100638875,-500.0,0.00016438,2]
[390598263,1760100638885,-500.0,0.00016438,2]
[390598264,1760100638894,-604.21,0.00016438,2]
[390598265,1760100638903,-942.0,0.00016438,2]
[390598266,1760100638913,-500.0,0.00016438,2]
[390598267,1760100638922,-500.0,0.00016438,2]
[390598268,1760100638932,-500.0,0.00016438,2]
[390598269,1760100638941,-500.0,0.00016438,2]
[390598270,1760100638951,-618.97,0.00016438,2]
[390598271,1760100638960,-151.0,0.00016438,2]
[390598272,1760100638970,-1292.2,0.00016438,2]
[390598273,1760100638979,-190.36153996,0.00016438,2]
[390598274,1760100638989,-480.0,0.00016438,2]
[390598275,1760100638998,-500.0,0.00016438,2]
[390598276,1760100639007,-501.66725245,0.00016438,2]
[390598277,1760100639017,-6221.6,0.00016438,2]
[390598278,1760100639026,-4740.98,0.00016438,2]
[390598279,1760100639036,-500.0,0.00016438,2]
[390598280,1760100639046,-500.0,0.00016438,2]
[390598281,1760100639055,-500.0,0.00016438,2]
[390598282,1760100639065,-500.0,0.00016438,2]
[390598283,1760100639075,-500.0,0.00016438,2]
[390598284,1760100639084,-500.0,0.00016438,2]
[390598285,1760100639094,-500.0,0.00016438,2]
[390598286,1760100639103,-500.0,0.00016438,2]
[390598287,1760100639113,-1636.15,0.00016438,2]
[390598288,1760100639122,-500.0,0.00016438,2]
[390598289,1760100639131,-1636.85,0.00016438,2]
[390598290,1760100639140,-500.0,0.00016438,2]
[390598291,1760100639150,-636.74,0.00016438,2]
[390598292,1760100639159,-1907.54,0.00016438,2]
[390598293,1760100639169,-501.96365242,0.00016438,2]
[390598294,1760100639179,-500.0,0.00016438,2]
[390598295,1760100639188,-500.0,0.00016438,2]
[390598296,1760100639197,-500.0,0.00016438,2]
[390598297,1760100639206,-500.0,0.00016438,2]
[390598298,1760100639216,-500.0,0.00016438,2]
[390598299,1760100639225,-500.0,0.00016438,2]
[390598300,1760100639235,-500.0,0.00016438,2]
[390598301,1760100639244,-500.0,0.00016438,2]
[390598302,1760100639253,-500.0,0.00016438,2]
[390598303,1760100639263,-500.0,0.00016438,2]
[390598304,1760100639272,-680.61,0.00016438,2]
[390598305,1760100639283,-487.17684428,0.00016438,2]
[390598306,1760100639292,-500.0,0.00016438,2]
[390598307,1760100639301,-2232.5,0.00016438,2]
[390598308,1760100639311,-718.36,0.00016438,2]
[390598309,1760100639320,-500.0,0.00016438,2]
[390598310,1760100639329,-1107.56,0.00016438,2]
[390598311,1760100639339,-500.0,0.00016438,2]
[390598312,1760100639348,-500.0,0.00016438,2]
[390598313,1760100639358,-500.0,0.00016438,2]
[390598314,1760100639368,-910.01,0.00016438,2]
[390598315,1760100639378,-500.0,0.00016438,2]
[390598316,1760100639388,-500.0,0.00016438,2]
[390598317,1760100639397,-2758.96,0.00016438,2]
[390598318,1760100639406,-2758.96,0.00016438,2]
[390598320,1760100639416,-2758.96,0.00016438,2]
[390598322,1760100639426,-2758.96,0.00016438,2]
[390598323,1760100639435,-500.0,0.00016438,2]
[390598324,1760100639445,-500.0,0.00016438,2]
[390598325,1760100639454,-644.11,0.00016438,2]
[390598326,1760100639464,-500.0,0.00016438,2]
[390598327,1760100639473,-500.0,0.00016438,2]
[390598329,1760100639482,-500.0,0.00016438,2]
[390598331,1760100639491,-500.0,0.00016438,2]
[390598333,1760100639500,-500.0,0.00016438,2]
[390598335,1760100639509,-3977.38,0.00016438,2]
[390598336,1760100639519,-500.0,0.00016438,2]
[390598337,1760100639527,-238.09,0.00016438,2]
[390598338,1760100639537,-2829.06,0.00016438,2]
[390598339,1760100639546,-661.07,0.00016438,2]
[390598340,1760100639556,-947.3,0.00016438,2]
[390598341,1760100639565,-1130.39,0.00016438,2]
[390598342,1760100639574,-500.0,0.00016438,2]
[390598343,1760100639584,-500.0,0.00016438,2]
[390598344,1760100639593,-582.38,0.00016438,2]
[390598345,1760100639602,-500.0,0.00016438,2]
[390598346,1760100639611,-725.03,0.00016438,2]
[390598347,1760100639620,-500.0,0.00016438,2]
[390598348,1760100639630,-876.53,0.00016438,2]
[390598349,1760100639640,-500.0,0.00016438,2]
[390598350,1760100639650,-180.50174715,0.00016438,2]
[390598351,1760100639659,-247.39966697,0.00016438,2]
[390598352,1760100639668,-500.0,0.00016438,2]
[390598353,1760100639677,-500.0,0.00016438,2]
[390598354,1760100639687,-500.0,0.00016438,2]
[390598355,1760100639696,-500.0,0.00016438,2]
[390598356,1760100639709,-500.0,0.00016438,2]
[390598357,1760100639719,-501.00529747,0.00016438,2]
[390598358,1760100639729,-459.76,0.00016438,2]
[390598359,1760100639738,-500.0,0.00016438,2]
[390598360,1760100639747,-500.0,0.00016438,2]
[390598361,1760100639757,-500.0,0.00016438,2]
[390598362,1760100639766,-505.23165234,0.00016438,2]
[390598363,1760100639776,-500.0,0.00016438,2]
[390598364,1760100639788,-500.0,0.00016438,2]
[390598365,1760100639797,-469.30839582,0.00016438,2]
[390598366,1760100639806,-500.0,0.00016438,2]
[390598367,1760100639816,-1845.07,0.00016438,2]
[390598368,1760100639825,-513.32,0.00016438,2]
[390598369,1760100639835,-1930.29,0.00016438,2]
[390598370,1760100639845,-500.0,0.00016438,2]
[390598371,1760100639854,-500.0,0.00016438,2]
[390598372,1760100639864,-500.0,0.00016438,2]
[390598373,1760100639873,-500.0,0.00016438,2]
[390598374,1760100639883,-500.0,0.00016438,2]
[390598375,1760100639892,-500.0,0.00016438,2]
[390598376,1760100639902,-500.0,0.00016438,2]
[390598377,1760100639911,-500.0,0.00016438,2]
[390598378,1760100639920,-500.0,0.00016438,2]
[390598379,1760100639930,-3127.98,0.00016438,2]
[390598380,1760100639939,-500.0,0.00016438,2]
[390598382,1760100639948,-500.0,0.00016438,2]
[390598383,1760100639958,-500.0,0.00016438,2]
[390598384,1760100639968,-500.0,0.00016438,2]
[390598385,1760100639977,-500.0,0.00016438,2]
[390598386,1760100639986,-599.91125735,0.00016438,2]
[390598387,1760100639995,-500.0,0.00016438,2]
[390598388,1760100640004,-500.62256216,0.00016438,2]
[390598389,1760100640014,-500.0,0.00016438,2]
[390598390,1760100640023,-369.60936673,0.00016438,2]
[390598391,1760100640033,-500.0,0.00016438,2]
[390598392,1760100640042,-713.07,0.00016438,2]
[390598393,1760100640051,-500.0,0.00016438,2]
[390598395,1760100640060,-691.43,0.00016438,2]
[390598397,1760100640069,-500.0,0.00016438,2]
[390598398,1760100640078,-501.38,0.00016438,2]
[390598399,1760100640087,-500.4640918,0.00016438,2]
[390598400,1760100640097,-500.0,0.00016438,2]
[390598401,1760100640106,-500.0,0.00016438,2]
[390598402,1760100640115,-500.67279678,0.00016438,2]
[390598403,1760100640124,-500.0,0.00016438,2]
[390598404,1760100640133,-585.78,0.00016438,2]
[390598405,1760100640142,-500.0,0.00016438,2]
[390598406,1760100640151,-500.0,0.00016438,2]
[390598407,1760100640160,-500.0,0.00016438,2]
[390598408,1760100640169,-501.36818589,0.00016438,2]
[390598409,1760100640178,-500.0,0.00016438,2]
[390598410,1760100640187,-500.0,0.00016438,2]
[390598411,1760100640196,-500.0,0.00016438,2]
[390598412,1760100640205,-1532.17,0.00016438,2]
[390598413,1760100640214,-500.0,0.00016438,2]
[390598414,1760100640224,-500.0,0.00016438,2]
[390598415,1760100640234,-500.0,0.00016438,2]
[390598416,1760100640243,-502.44828813,0.00016438,2]
[390598417,1760100640252,-500.0,0.00016438,2]
[390598418,1760100640261,-501.60536764,0.00016438,2]
[390598419,1760100640270,-241.15,0.00016438,2]
[390598420,1760100640279,-728.07,0.00016438,2]
[390598421,1760100640288,-786.43,0.00016438,2]
[390598422,1760100640298,-914.65,0.00016438,2]
[390598423,1760100640307,-500.0,0.00016438,2]
[390598424,1760100640316,-500.0,0.00016438,2]
[390598425,1760100640326,-2646.0,0.00016438,2]
[390598426,1760100640335,-500.0,0.00016438,2]
[390598427,1760100640343,-200.0,0.00016438,10]
[390598428,1760100640352,-500.0,0.00016438,2]
[390598429,1760100640362,-200.0,0.00016438,10]
[390598430,1760100640370,-200.0,0.00016438,10]
[390598431,1760100640380,-200.0,0.00016438,10]
[390598432,1760100640389,-730.7,0.00016438,2]
[390598433,1760100640398,-200.0,0.00016438,10]
[390598434,1760100640407,-200.0,0.00016438,10]
[390598435,1760100640416,-200.0,0.00016438,10]
[390598436,1760100640426,-500.0,0.00016438,2]
[390598437,1760100640435,-500.0,0.00016438,2]
[390598438,1760100640444,-500.0,0.00016438,2]
[390598439,1760100640454,-340.0008303,0.00016438,2]
[390598440,1760100640464,-500.0,0.00016438,2]
[390598441,1760100640473,-500.0,0.00016438,2]
[390598442,1760100640482,-1999.92,0.00016438,2]
[390598443,1760100640491,-500.0,0.00016438,2]
[390598444,1760100640499,-500.0,0.00016438,2]
[390598445,1760100640509,-500.0,0.00016438,2]
[390598446,1760100640518,-500.0,0.00016438,2]
[390598447,1760100640527,-846.89,0.00016438,2]
[390598448,1760100640536,-786.83,0.00016438,2]
[390598449,1760100640545,-500.0,0.00016438,2]
[390598450,1760100640555,-540.24,0.00016438,2]
[390598451,1760100640563,-500.0,0.00016438,2]
[390598452,1760100640573,-151.0,0.00016438,2]
[390598453,1760100640582,-500.0,0.00016438,2]
[390598454,1760100640591,-503.01189571,0.00016438,2]
[390598455,1760100640604,-500.0,0.00016438,2]
[390598456,1760100640619,-500.0,0.00016438,2]
[390598457,1760100640629,-821.38,0.00016438,2]
[390598458,1760100640639,-500.0,0.00016438,2]
[390598459,1760100640648,-500.0,0.00016438,2]
[390598460,1760100640657,-500.0,0.00016438,2]
[390598461,1760100640666,-500.0,0.00016438,2]
[390598462,1760100640676,-414.2972915,0.00016438,2]
[390598463,1760100640686,-500.0,0.00016438,2]
[390598464,1760100640696,-500.0,0.00016438,2]
[390598465,1760100640707,-500.0,0.00016438,2]
[390598466,1760100640718,-500.0,0.00016438,2]
[390598467,1760100640728,-500.0,0.00016438,2]
[390598468,1760100640737,-500.0,0.00016438,2]
[390598469,1760100640746,-500.0,0.00016438,2]
[390598470,1760100640756,-500.0,0.00016438,2]
[390598471,1760100640765,-504.32650793,0.00016438,2]
[390598472,1760100640775,-500.0,0.00016438,2]
[390598473,1760100640784,-500.0,0.00016438,2]
[390598474,1760100640793,-422.54032191,0.00016438,2]
[390598475,1760100640803,-500.0,0.00016438,2]
[390598476,1760100640811,-500.0,0.00016438,2]
[390598477,1760100640821,-500.0,0.00016438,2]
[390598478,1760100640831,-500.0,0.00016438,2]
[390598479,1760100640840,-573.53,0.00016438,2]
[390598480,1760100640850,-1694.54,0.00016438,2]
[390598481,1760100640859,-820.05,0.00016438,2]
[390598482,1760100640868,-500.0,0.00016438,2]
[390598483,1760100640878,-500.0,0.00016438,2]
[390598484,1760100640888,-166.28573359,0.00016438,2]
[390598485,1760100640897,-500.0,0.00016438,2]
[390598486,1760100640908,-312.8512592,0.00016463,2]
[390598487,1760100640917,-152.38589367,0.00016493,2]
[390598488,1760100640927,-151.0,0.00016493,2]
[390598489,1760100640936,-151.0,0.00016493,2]
[390598490,1760100640945,-151.0,0.00016493,2]
[390598491,1760100640955,-151.0,0.00016493,2]
[390598492,1760100640964,-151.0,0.00016493,2]
[390598493,1760100640974,-942.0,0.00016493,2]
[390598494,1760100640983,-151.0,0.00016493,2]
[390598495,1760100640994,-151.0,0.00016493,2]
[390598496,1760100641003,-151.0,0.00016548,2]
[390598497,1760100641013,-151.0,0.00016548,2]
[390598498,1760100641022,-198.0,0.00016548,2]
[390598499,1760100641032,-151.0,0.00016548,2]
[390598500,1760100641041,-942.0,0.00016548,2]
[390598501,1760100641050,-151.0,0.00016548,2]
[390598502,1760100641059,-151.0,0.00016548,2]
[390598503,1760100641068,-309.5669343,0.000166,2]
[390598504,1760100641078,-198.0,0.00016602,2]
[390598505,1760100641087,-151.0,0.00016602,2]
[390598506,1760100641096,-942.0,0.00016602,2]
[390598507,1760100641106,-159.37404458,0.00016602,2]
[390598508,1760100641115,-153.63453505,0.00016602,2]
[390598509,1760100641124,-603.50315608,0.00016612,2]
[390598510,1760100641133,-192.40420351,0.00016657,2]
[390598511,1760100641142,-942.0,0.00016657,2]
[390598512,1760100641151,-296.4665998,0.000167,2]
[390598513,1760100641160,-2758.96,0.00016711,2]
[390598514,1760100641169,-2758.96,0.00016711,2]
[390598515,1760100641179,-2758.96,0.00016711,2]